bitfinex-derivatives/quotes_ETHF0:USTF0_20250520
["timestamp","ask_amount","ask_price","bid_price","bid_amount"]
[1747784007755,12.774,2529.8,2529.5,1.60982066]
[1747784009450,12.774,2529.8,2529.6,0.31622066]
[1747784010356,12.774,2529.8,2529.7,1.3766]
[1747784010761,14.72018,2529.8,2529.7,1.3766]
[1747784011551,14.49288,2529.8,2529.7,1.3766]
[1747784012458,14.39288,2529.8,2529.7,1.3766]
[1747784013358,12.4164,2529.8,2529.7,3.35308]
[1747784013553,12.4063,2529.8,2529.7,3.35308]
[1747784014458,12.3918,2529.8,2529.7,3.35308]
[1747784014661,12.3918,2529.8,2529.7,3.66929248]
[1747784015756,3.2078,2530.1,2529.7,3.35308]
[1747784015948,3.2078,2530.1,2529.8,1.395]
[1747784016353,3.2078,2530.1,2529.8,3.37132499]
[1747784016558,2.8854,2530.1,2529.8,3.37132499]
[1747784017163,2.8854,2530.1,2529.9,0.31617602]
[1747784017355,2.8854,2530.1,2530.0,2.18528]
[1747784017356,3.67565,2530.1,2530.0,2.18528]
[1747784017552,0.00592616,2530.4,2530.1,1.97563]
[1747784017751,0.79019,2530.3,2530.2,1.395]
[1747784017952,0.79028,2530.0,2529.9,3.52397602]
[1747784018260,0.79034,2529.8,2529.7,1.3966]
[1747784018460,0.79037,2529.7,2529.6,3.99818]
[1747784018657,1.2888,2529.9,2529.6,5.39478]
[1747784018861,0.79036,2529.8,2529.7,2.18693]
[1747784019058,2.92583,2529.9,2529.8,0.79033]
[1747784019254,2.92583,2529.9,2529.8,2.18693]
[1747784019466,2.92583,2529.9,2529.8,4.16333]
[1747784020265,2.92583,2529.9,2529.8,3.373]
[1747784020560,0.79036,2529.7,2529.6,3.2078]
[1747784020864,0.79036,2529.7,2529.6,4.6044]
[1747784021257,6e-05,2529.7,2529.6,5.18435999]
[1747784021467,0.79042,2529.7,2529.6,5.18435999]
[1747784021669,2.18052,2529.7,2529.6,5.18435999]
[1747784021859,0.79046,2529.4,2529.3,3.2078]
[1747784022056,13.52646,2529.4,2529.3,3.2078]
[1747784022260,0.79049,2529.3,2529.2,0.32001333]
[1747784022470,3.06389,2529.3,2529.2,0.32001333]
[1747784022663,5.04076,2529.3,2529.2,0.32001333]
[1747784023560,10.04076,2529.3,2529.2,0.32001333]
[1747784023764,0.79077,2528.4,2528.3,2.39204045]
[1747784024069,13.52677,2528.4,2528.3,2.39204045]
[1747784024369,15.504345,2528.4,2528.3,2.39204045]
[1747784024670,15.504345,2528.4,2528.3,0.47893736]
[1747784025865,0.79084,2528.2,2528.1,0.00592616]
[1747784026468,2.76857,2528.2,2528.1,0.00592616]
[1747784029374,0.79084,2528.2,2528.1,1.98365616]
[1747784030666,2.08103,2528.3,2528.1,1.98365616]
[1747784030865,12.74,2528.3,2528.2,2.13214]
[1747784031064,12.74,2528.3,2528.2,1.3413]
[1747784031375,14.717655,2528.3,2528.2,1.3413]
[1747784031577,15.508465,2528.3,2528.2,1.3413]
[1747784032175,15.508465,2528.3,2528.2,4.5491]
[1747784032878,15.510465,2528.3,2528.2,4.5491]
[1747784033076,15.510465,2528.3,2528.2,3.2078]
[1747784033279,0.79084,2528.2,2528.1,0.00592616]
[1747784033476,13.53283,2528.3,2528.1,2.08309616]
[1747784033667,13.53283,2528.3,2528.2,4.4941]
[1747784034580,15.510485,2528.3,2528.2,4.4941]
[1747784035774,12.742,2528.3,2528.2,7.262595]
[1747784035970,1.3316,2528.5,2528.4,0.79078]
[1747784035971,0.79076,2528.5,2528.4,0.79078]
[1747784036172,12.74792616,2528.6,2528.5,0.79075]
[1747784036371,0.00592616,2528.6,2528.5,3.99855]
[1747784036567,0.79664616,2528.6,2528.5,5.18522]
[1747784037464,2.77406616,2528.6,2528.5,3.2078]
[1747784037670,0.79078,2528.4,2528.3,2.1662]
[1747784038281,0.79084,2528.2,2528.1,0.00592616]
[1747784038779,2.76857,2528.2,2528.1,0.00592616]
[1747784038971,4.07037,2528.2,2528.1,0.00592616]
[1747784041674,12.742,2528.3,2528.1,0.00592616]
[1747784041874,3.21372616,2528.6,2528.2,0.79084]
[1747784042080,0.79084,2528.2,2528.1,1.33412616]
[1747784042382,0.79082,2528.3,2528.2,0.79084]
[1747784043288,0.79084,2528.2,2528.1,1.33412616]
[1747784043980,0.79084,2528.2,2528.1,3.31185616]
[1747784044779,0.79084,2528.3,2528.1,4.10271616]
[1747784044980,0.79084,2528.3,2528.2,1.3052]
[1747784045787,2.768495,2528.3,2528.2,1.3052]
[1747784046189,0.79084,2528.2,2528.1,0.00592616]
[1747784046579,4.92767,2528.2,2528.1,0.00592616]
[1747784047082,12.743,2528.5,2528.1,3.29155616]
[1747784047281,0.79084,2528.2,2528.1,2.10468616]
[1747784047485,0.79084,2528.2,2528.1,0.00592616]
[1747784047688,2.76857,2528.2,2528.1,0.00592616]
[1747784052188,0.79084,2528.2,2528.1,1.98365616]
[1747784052392,0.79075,2528.5,2528.1,6.98365616]
[1747784052592,0.00592616,2528.6,2528.5,0.79075]
[1747784053092,0.79664616,2528.6,2528.5,3.59717]
[1747784053280,0.79664616,2528.6,2528.5,2.80642]
[1747784053681,0.79664616,2528.6,2528.5,3.59717]
[1747784053882,0.00592616,2528.6,2528.5,3.59717]
[1747784054496,0.79664616,2528.6,2528.5,3.59717]
[1747784054795,0.79664616,2528.6,2528.5,3.91352145]
[1747784055290,0.00592616,2528.6,2528.5,8.91352145]
[1747784055493,39.843,2529.2,2528.7,1.9767]
[1747784055706,13.49859,2529.1,2529.0,3.99837]
[1747784056296,0.79059,2529.1,2529.0,5.184825]
[1747784056697,13.49855,2529.2,2529.1,0.79056]
[1747784056893,0.79055,2529.2,2529.1,0.8831]
[1747784057287,0.79055,2529.2,2529.1,2.86005]
[1747784057690,0.79056,2529.1,2529.0,3.2078]
[1747784058092,2.85244977,2529.1,2529.0,3.2078]
[1747784058296,2.85244977,2529.1,2528.7,0.8725]
[1747784058297,0.79065,2528.8,2528.7,0.8725]
[1747784058800,0.79065,2528.8,2528.7,2.84976]
[1747784059298,13.9842,2529.0,2528.7,3.64043]
[1747784059491,14.77481,2529.0,2528.9,3.2078]
[1747784059886,16.751915,2529.0,2528.9,3.2078]
[1747784060301,15.473715,2529.0,2528.9,3.2078]
[1747784061098,16.659635,2529.0,2528.5,3.99854]
[1747784061300,0.79072,2528.6,2528.5,3.99854]
[1747784061797,0.79072,2528.6,2528.5,3.2078]
[1747784061992,15.47414,2528.6,2528.5,3.2078]
[1747784062398,0.79078,2528.4,2528.3,1.7052]
[1747784062994,0.79078,2528.4,2528.3,2.82957499]
[1747784063198,0.79078,2528.4,2528.3,3.62038499]
[1747784063395,0.79078,2528.5,2528.4,0.79077]
[1747784063797,0.79078,2528.4,2528.3,1.64279]
[1747784064301,0.79078,2528.4,2528.3,3.62038499]
[1747784064502,0.79078,2528.4,2528.3,0.852]
[1747784064706,0.79078,2528.4,2528.3,2.2481]
[1747784065003,0.79078,2528.4,2528.3,5.01648499]
[1747784065403,0.79078,2528.4,2528.3,4.22567499]
[1747784065603,0.79078,2528.4,2528.3,5.01648499]
[1747784066405,0.79078,2528.4,2528.3,4.22567499]
[1747784066904,0.79078,2528.4,2528.3,5.01648499]
[1747784067706,0.79078,2528.4,2528.3,4.22567499]
[1747784067907,0.79078,2528.4,2528.3,5.01648499]
[1747784069407,0.79078,2528.4,2528.3,3.03891]
[1747784069612,0.79078,2528.4,2528.3,2.2481]
[1747784069802,0.79078,2528.4,2528.3,4.22567499]
[1747784070713,0.79078,2528.4,2528.3,4.54207622]
[1747784072010,0.79078,2528.4,2528.3,7.74987622]
[1747784073103,2.768355,2528.4,2528.3,4.92030123]
[1747784073307,2.768355,2528.4,2528.3,1.71250123]
[1747784073910,2.768355,2528.4,2528.3,0.31640123]
[1747784074508,0.79084,2528.2,2528.1,1.38602616]
[1747784074812,13.46084,2528.2,2528.1,1.38602616]
[1747784075007,15.43857,2528.2,2528.1,2.17689616]
[1747784075212,15.43857,2528.2,2528.1,1.38602616]
[1747784076606,15.43831,2528.2,2528.1,1.38602616]
[1747784086512,0.79078,2528.5,2528.4,0.79074]
[1747784086717,0.79078,2528.5,2528.4,3.2078]
[1747784087117,0.79078,2528.5,2528.4,4.5121]
[1747784087514,0.79078,2528.5,2528.4,5.30288]
[1747784087915,0.79078,2528.5,2528.4,7.280375]
[1747784089518,13.6596847,2528.8,2528.7,3.99848]
[1747784089818,14.4503347,2528.8,2528.7,5.97574]
[1747784090021,14.4503347,2528.8,2528.7,5.77708]
[1747784090212,13.6594347,2528.8,2528.7,6.96366]
[1747784090412,13.6594347,2528.8,2528.7,4.9864]
[1747784091123,13.46165,2528.8,2528.7,5.30275288]
[1747784091512,15.43891,2528.8,2528.7,5.30275288]
[1747784093213,13.46165,2528.8,2528.7,5.30275288]
[1747784093414,15.43891,2528.8,2528.7,5.30275288]
[1747784093614,15.43891,2528.8,2528.7,0.31635288]
[1747784094014,2.76791,2528.8,2528.7,0.31635288]
[1747784094213,15.43791,2528.8,2528.7,0.31635288]
[1747784094414,15.43791,2528.8,2528.7,1.16445288]
[1747784094617,15.43791,2528.8,2528.7,0.8481]
[1747784094816,15.43791,2528.8,2528.7,1.63878]
[1747784095315,15.43791,2528.8,2528.7,0.8481]
[1747784095719,0.79069,2528.7,2528.6,1.3864]
[1747784096123,2.76803,2528.7,2528.6,1.3864]
[1747784096317,0.79069,2528.7,2528.6,1.3864]
[1747784097130,1.97713,2528.7,2528.6,1.3864]
[1747784097424,2.76782,2528.7,2528.6,1.3864]
[1747784098519,1.97692,2528.7,2528.6,1.3864]
[1747784098721,1.97692,2528.7,2528.6,2.17751]
[1747784100421,0.79072,2528.6,2528.5,3.2078]
[1747784100926,2.76814,2528.6,2528.5,3.2078]
[1747784101527,2.76814,2528.6,2528.5,3.52417363]
[1747784101824,2.76814,2528.6,2528.5,4.82907363]
[1747784102318,1.97714,2528.6,2528.5,4.82907363]
[1747784102525,2.76786,2528.6,2528.5,4.82907363]
[1747784103128,2.76786,2528.6,2528.5,4.5127]
[1747784104122,12.67,2528.8,2528.7,0.79068]
[1747784104325,12.67,2528.8,2528.7,1.58207]
[1747784104626,0.00592616,2529.3,2528.8,1.9766]
[1747784104927,0.79643616,2529.3,2529.2,1.58192]
[1747784105115,0.79643616,2529.3,2529.2,2.06309]
[1747784105316,3.95908616,2529.3,2528.9,1.6834]
[1747784105527,0.79056,2529.1,2529.0,2.06309]
[1747784105719,13.41956,2529.1,2529.0,2.06309]
[1747784105920,13.41956,2529.1,2528.8,3.2078]
[1747784105921,0.79062,2528.9,2528.8,3.2078]
[1747784106118,1.97659,2528.9,2528.6,0.8989]
[1747784106315,1.97659,2528.9,2528.4,0.79139]
[1747784106316,0.79075,2528.5,2528.4,0.79139]
[1747784106513,5.18452,2528.7,2528.5,0.23790931]
[1747784106514,0.79072,2528.6,2528.5,0.23790931]
[1747784106728,13.41872,2528.6,2528.5,0.23790931]
[1747784106925,15.39614,2528.6,2528.5,0.23790931]
[1747784107123,16.76454,2528.6,2528.5,0.23790931]
[1747784107726,1.9768,2528.5,2528.2,1.2866]
[1747784107925,1.3684,2528.4,2528.3,0.79139]
[1747784108329,0.79081,2528.3,2528.2,1.2866]
[1747784108829,0.79081,2528.3,2528.2,2.07799]
[1747784109430,4.13660501,2528.4,2528.3,0.79139]
[1747784109620,4.13660501,2528.4,2528.3,2.17899]
[1747784109826,4.13660501,2528.4,2528.3,1.3876]
[1747784111029,3.34560501,2528.4,2528.3,1.3876]
[1747784111220,2.76839501,2528.4,2528.3,1.3876]
[1747784111836,13.4503,2528.6,2528.4,0.79077]
[1747784112028,16.21847501,2528.6,2528.5,2.17835]
[1747784112229,1.97745501,2528.6,2528.5,2.17835]
[1747784112728,3.42820424,2528.6,2528.5,1.3876]
[1747784112932,0.79084,2528.2,2528.1,3.45163547]
[1747784113328,0.79084,2528.2,2528.1,4.24302547]
[1747784113527,0.79081,2528.3,2528.2,0.79139]
[1747784113936,2.768465,2528.3,2528.2,0.79139]
[1747784114229,2.768465,2528.3,2528.2,2.06049]
[1747784115133,2.768275,2528.3,2528.2,2.06049]
[1747784115331,15.398275,2528.3,2528.2,2.06049]
[1747784117837,15.398465,2528.3,2528.2,2.06068]
[1747784119033,15.398465,2528.3,2528.1,3.21372616]
[1747784119034,0.79084,2528.2,2528.1,3.21372616]
[1747784119231,2.16804,2528.2,2528.1,3.21372616]
[1747784119628,2.16804,2528.2,2528.1,4.00530616]
[1747784120228,2.16804,2528.2,2528.1,3.21372616]
[1747784120423,2.16804,2528.2,2528.1,4.00530616]
[1747784120629,1.37694,2528.2,2528.1,3.21372616]
[1747784120829,2.16778,2528.2,2528.1,3.21372616]
[1747784121224,2.16778,2528.2,2528.1,4.00530616]
[1747784121434,2.16778,2528.2,2528.1,3.21372616]
[1747784121629,2.16778,2528.2,2528.1,4.00530616]
[1747784121824,2.16778,2528.2,2528.1,3.21372616]
[1747784122338,2.16778,2528.2,2528.1,4.00530616]
[1747784122531,2.16778,2528.2,2528.1,3.21372616]
[1747784122731,2.16778,2528.2,2528.1,4.00530616]
[1747784123229,2.16778,2528.2,2528.1,3.21372616]
[1747784123532,2.16778,2528.2,2528.1,4.00530616]
[1747784123734,2.16778,2528.2,2528.1,3.21372616]
[1747784124129,2.16778,2528.2,2528.1,4.00530616]
[1747784124638,2.16778,2528.2,2527.7,1.59508]
[1747784124639,9.58474,2528.2,2527.7,0.8041]
[1747784124938,9.58474,2528.2,2527.6,1.3613]
[1747784124939,0.791,2527.7,2527.6,1.3613]
[1747784125234,0.79103,2527.6,2527.5,0.23790931]
[1747784125440,7.03323,2527.6,2527.5,0.23790931]
[1747784125934,7.03323,2527.6,2527.5,1.02948931]
[1747784126336,7.03323,2527.6,2527.5,0.23790931]
[1747784126536,7.03323,2527.6,2527.5,1.02948931]
[1747784126841,7.03306,2527.6,2527.5,0.23790931]
[1747784127140,7.03306,2527.6,2527.3,1.36722616]
[1747784127141,0.79109,2527.4,2527.3,1.36722616]
[1747784127345,13.42409,2527.4,2527.3,1.36722616]
[1747784127729,13.42409,2527.4,2527.3,2.15880616]
[1747784127934,13.42409,2527.4,2527.3,1.36722616]
[1747784128234,0.79109,2527.4,2527.3,1.36722616]
[1747784128437,13.42409,2527.4,2527.3,2.15880616]
[1747784128934,0.79109,2527.4,2527.3,1.36722616]
[1747784129131,13.42409,2527.4,2527.3,2.15880616]
[1747784129337,13.42409,2527.4,2527.3,1.36722616]
[1747784129534,13.42409,2527.4,2527.3,2.15880616]
[1747784129834,13.42409,2527.4,2527.3,1.36722616]
[1747784130030,13.42409,2527.4,2527.3,2.15880616]
[1747784130231,13.42409,2527.4,2527.3,1.36722616]
[1747784130445,12.63279,2527.4,2527.3,2.15880616]
[1747784130633,13.42388,2527.4,2527.3,2.15880616]
[1747784130839,13.42388,2527.4,2527.3,1.36722616]
[1747784131035,13.42388,2527.4,2527.3,2.15880616]
[1747784131436,13.42388,2527.4,2527.3,1.36722616]
[1747784131644,13.42388,2527.4,2527.3,0.00592616]
[1747784132638,13.42388,2527.4,2527.3,0.79750616]
[1747784132837,13.42388,2527.4,2527.3,0.00592616]
[1747784133233,21.63168,2527.4,2527.3,0.79158]
[1747784133438,0.79128,2526.8,2526.7,3.2078]
[1747784133639,13.42528,2526.8,2526.7,3.2078]
[1747784133839,15.404105,2526.8,2526.7,3.2078]
[1747784134044,0.79131,2526.7,2526.6,2.2238]
[1747784134343,0.79131,2526.7,2526.6,1.3469]
[1747784134536,2.770215,2526.7,2526.6,1.3469]
[1747784135045,1.978715,2526.7,2526.6,1.3469]
[1747784135249,2.770025,2526.7,2526.6,1.3469]
[1747784137145,0.79143,2526.3,2526.2,3.2078]
[1747784137337,13.38643,2526.3,2526.2,3.2078]
[1747784137538,13.3864,2526.4,2526.3,0.79142]
[1747784137744,0.79143,2526.3,2526.2,3.99926]
[1747784137947,13.38641,2526.4,2526.2,3.99926]
[1747784138143,12.595,2526.4,2526.2,3.2078]
[1747784138446,0.79143,2526.3,2526.2,3.2078]
[1747784138649,12.59473,2526.4,2526.2,3.2078]
[1747784138851,0.79143,2526.3,2526.2,3.2078]
[1747784139240,0.00592616,2526.5,2526.4,0.7914]
[1747784139441,12.60192616,2526.5,2526.4,0.7914]
[1747784139642,14.58098616,2526.5,2526.4,0.7914]
[1747784139938,14.58098616,2526.5,2526.3,3.04141]
[1747784140143,13.39331616,2526.5,2526.4,0.7914]
[1747784140343,12.60172616,2526.5,2526.4,0.7914]
[1747784140534,12.60172616,2526.5,2526.2,3.2078]
[1747784140535,0.79143,2526.3,2526.2,3.99923]
[1747784142743,0.79143,2526.3,2526.2,3.2078]
[1747784143247,0.79143,2526.3,2526.2,3.99926]
[1747784144544,0.79143,2526.3,2526.2,3.2078]
[1747784145139,0.79143,2526.3,2526.2,3.99926]
[1747784145340,12.60145616,2526.5,2526.2,3.99926]
[1747784145546,0.79142,2526.4,2526.3,0.79143]
[1747784145843,0.79143,2526.3,2526.2,3.99925]
[1747784146050,0.79143,2526.3,2526.2,3.2078]
[1747784146242,2.77065001,2526.3,2526.2,3.2078]
[1747784146948,3.32075001,2526.3,2526.2,3.2078]
[1747784147145,4.11218001,2526.3,2526.2,3.2078]
[1747784147748,4.11235001,2526.3,2526.2,3.2078]
[1747784148849,5.29954001,2526.3,2525.6,0.8234]
[1747784149046,3.2078,2526.1,2525.6,1.6757]
[1747784149246,0.79162,2525.7,2525.6,1.6757]
[1747784149448,0.79161,2525.8,2525.6,2.46735]
[1747784149748,16.75707,2526.0,2525.6,2.46735]
[1747784149946,0.79161,2525.8,2525.7,0.79162]
[1747784150149,18.73589,2526.0,2525.6,1.6757]
[1747784150347,0.79162,2525.7,2525.6,1.6757]
[1747784150645,14.77737,2526.0,2525.7,0.79159]
[1747784150855,0.79161,2525.7,2525.6,2.46733]
[1747784151046,0.7916,2525.8,2525.6,2.46733]
[1747784151442,12.6,2525.7,2525.6,2.46733]
[1747784151643,13.39162,2525.7,2525.6,1.6757]
[1747784152353,14.57951001,2525.7,2525.6,1.6757]
[1747784152551,12.59982,2525.7,2525.6,1.6757]
[1747784153553,12.6,2525.7,2525.6,2.46733]
[1747784153744,0.79159,2525.8,2525.6,2.46733]
[1747784153745,0.79159,2525.8,2525.7,0.79161]
[1747784153950,0.79159,2525.8,2525.6,1.6757]
[1747784153951,12.601,2525.7,2525.6,2.46735]
[1747784154150,13.39261,2525.7,2525.6,1.6757]
[1747784154448,13.39261,2525.7,2525.6,2.46735]
[1747784154659,12.601,2526.1,2525.8,1.97897]
[1747784154952,12.601,2526.1,2526.0,3.99932]
[1747784155153,13.39249,2526.1,2526.0,3.99932]
[1747784155456,12.60069,2526.1,2526.0,3.99932]
[1747784156149,12.60069,2526.1,2526.0,3.2078]
[1747784156747,12.60069,2526.1,2526.0,5.38772]
[1747784157250,14.580065,2526.1,2526.0,4.5962]
[1747784158151,15.985165,2526.1,2526.0,4.5962]
[1747784159854,15.985165,2526.1,2526.0,3.2078]
[1747784160155,15.985165,2526.1,2525.6,1.6757]
[1747784160156,0.79161,2525.7,2525.6,1.6757]
[1747784160546,13.39261,2525.7,2525.6,1.6757]
[1747784161159,1.97885,2526.0,2525.6,1.6757]
[1747784161160,4.0546,2526.2,2525.6,1.6757]
[1747784161353,6.03409,2526.2,2525.7,1.3012]
[1747784161548,12.601,2526.1,2525.9,0.79155]
[1747784161752,13.39252,2526.1,2526.0,1.3012]
[1747784161954,12.60062,2526.1,2526.0,1.3012]
[1747784162254,14.579995,2526.1,2526.0,1.3012]
[1747784163352,0.00545616,2526.5,2526.4,0.7914]
[1747784163548,0.00545616,2526.5,2526.4,3.9992]
[1747784163745,0.79681616,2526.5,2526.4,3.2078]
[1747784163952,2.77587616,2526.5,2526.4,3.2078]
[1747784164154,0.00545616,2526.5,2526.4,3.2078]
[1747784164350,0.00545616,2526.5,2526.4,5.3041]
[1747784164948,0.00545616,2526.5,2526.4,4.5127]
[1747784164949,0.79681616,2526.5,2526.4,4.5127]
[1747784165156,0.79136,2526.5,2526.4,4.5127]
[1747784165963,0.79136,2526.5,2526.4,1.3049]
[1747784166961,1.97882,2526.5,2526.4,1.3049]
[1747784167262,0.79136,2526.5,2526.4,1.3049]
[1747784167559,0.79143,2526.3,2526.2,0.00593812]
[1747784168057,2.77065001,2526.3,2526.2,0.00593812]
[1747784168257,4.17845001,2526.3,2526.2,0.00593812]
[1747784168660,4.17828001,2526.3,2526.2,0.00593812]
[1747784169059,7.38608001,2526.3,2526.2,0.00593812]
[1747784170065,0.79155,2525.9,2525.8,0.23790931]
[1747784170367,13.34955,2525.9,2525.8,0.23790931]
[1747784170561,15.32908,2525.9,2525.6,1.2811]
[1747784170761,0.79161,2525.7,2525.6,1.2811]
[1747784170962,0.79161,2525.7,2525.3,1.6624]
[1747784170963,0.79177,2525.2,2525.1,3.44570931]
[1747784171157,13.34977,2525.2,2525.1,4.78290931]
[1747784171361,2.77185,2525.2,2525.1,4.78290931]
[1747784171559,0.79176,2525.3,2525.1,4.78290931]
[1747784171759,13.34977,2525.2,2525.1,3.44570931]
[1747784172063,12.55797,2525.2,2525.1,3.44570931]
[1747784172673,14.53805,2525.2,2525.1,3.44570931]
[1747784172860,14.53805,2525.2,2525.1,3.2078]
[1747784173965,2.77185,2525.2,2525.1,3.2078]
[1747784174166,15.33085,2525.2,2525.1,3.2078]
[1747784175369,0.7919,2524.8,2524.7,3.2078]
[1747784175573,13.3529,2524.8,2524.7,3.2078]
[1747784175961,15.33329501,2524.8,2524.7,3.2078]
[1747784177170,15.33309501,2524.8,2524.7,3.2078]
[1747784178264,14.54119501,2524.8,2524.3,3.2078]
[1747784178464,12.562,2524.8,2524.7,0.7919]
[1747784178963,12.562,2524.8,2524.6,3.2078]
[1747784178964,0.79193,2524.7,2524.6,3.2078]
[1747784179368,0.79192,2524.8,2524.6,3.99973]
[1747784179869,0.8245,2525.2,2524.9,0.79184]
[1747784180074,12.562,2525.2,2524.9,0.79183]
[1747784180272,12.562,2525.2,2524.9,3.2078]
[1747784180578,12.56161,2525.2,2524.9,3.99964]
[1747784180774,0.79183,2525.0,2524.9,3.99964]
[1747784181464,0.79183,2525.0,2524.9,3.2078]
[1747784181669,0.79183,2525.0,2524.9,3.99966]
[1747784182276,0.79183,2525.0,2524.9,3.2078]
[1747784182471,14.54078,2525.2,2524.9,3.99966]
[1747784182673,0.79181,2525.1,2525.0,0.7918]
[1747784182973,0.79178,2525.2,2525.1,0.7918]
[1747784183470,0.79175,2525.3,2525.2,0.79174]
[1747784183976,13.22771735,2525.4,2525.2,3.99954]
[1747784184277,0.79175,2525.3,2525.2,3.99954]
[1747784184471,14.01943735,2525.4,2525.3,0.79174]
[1747784184877,0.66571735,2525.4,2525.3,7.09964]
[1747784185772,13.41873536,2525.7,2525.3,1.3079]
[1747784185968,12.562,2525.7,2525.3,2.09963]
[1747784186271,0.79168,2525.5,2525.4,0.79171]
[1747784186478,0.79171,2525.4,2525.3,2.09961]
[1747784186665,0.79171,2525.4,2525.3,2.09962]
[1747784186870,0.79171,2525.4,2525.3,1.3079]
[1747784187267,1.97973501,2525.4,2525.3,1.3079]
[1747784187480,2.77144501,2525.4,2525.3,1.3079]
[1747784187781,0.79177,2525.2,2525.1,4.00552812]
[1747784187971,13.35377,2525.2,2525.1,0.00593812]
[1747784188167,15.33385,2525.2,2525.1,0.00593812]
[1747784188675,16.64955,2525.2,2525.1,0.00593812]
[1747784188972,4.08755,2525.2,2525.1,0.00593812]
[1747784189179,15.33385,2525.2,2525.1,0.00593812]
[1747784189579,16.64955,2525.2,2525.1,0.00593812]
[1747784190378,21.64955,2525.2,2525.1,0.00593812]
[1747784190976,0.79193,2524.7,2524.6,1.4059]
[1747784191281,3.2078,2525.0,2524.7,0.00096616]
[1747784191474,0.79189,2524.8,2524.7,0.00096616]
[1747784191676,0.79193,2524.7,2524.6,2.19784]
[1747784191874,0.79193,2524.7,2524.6,0.79194]
[1747784192075,2.772405,2524.7,2524.6,0.00096616]
[1747784192379,14.679,2524.9,2524.6,0.79292616]
[1747784192574,0.79189,2524.8,2524.6,0.79292616]
[1747784192772,16.65908501,2524.9,2524.6,0.79292616]
[1747784193172,0.79193,2524.7,2524.6,0.00096616]
[1747784193480,0.79196,2524.6,2524.5,3.2078]
[1747784193878,0.79205,2524.3,2524.2,3.2078]
[1747784194078,13.35505,2524.3,2524.2,3.20876616]
[1747784194274,15.335785,2524.3,2524.2,3.20876616]
[1747784194473,15.301835,2524.3,2524.2,0.00096616]
[1747784194881,2.772835,2524.3,2524.2,0.00096616]
[1747784195175,0.79215,2524.0,2523.9,0.79215]
[1747784195371,0.00593812,2524.2,2524.1,0.00096616]
[1747784195569,12.53493812,2524.2,2523.9,3.2078]
[1747784195774,13.32701812,2524.2,2524.1,0.00096616]
[1747784196173,15.30788312,2524.2,2524.1,0.00096616]
[1747784196384,15.30788312,2524.2,2523.8,0.79219]
[1747784196385,16.49604312,2524.2,2523.8,0.79219]
[1747784196583,11.74253812,2524.2,2524.1,0.00096616]
[1747784196783,12.53461812,2524.2,2524.1,0.00096616]
[1747784196984,0.79215,2524.0,2523.9,3.99995]
[1747784197577,0.79215,2524.0,2523.9,4.00091616]
[1747784198683,12.52975,2524.1,2524.0,0.00096616]
[1747784198884,13.32186,2524.1,2524.0,0.79311616]
[1747784199086,13.32186,2524.1,2524.0,0.00096616]
[1747784199989,15.302805,2524.1,2524.0,0.00096616]
[1747784200281,0.00593812,2524.2,2524.1,0.79211]
[1747784200586,4.0504,2525.0,2524.7,0.79189]
[1747784200792,0.79186,2524.9,2524.8,0.00096616]
[1747784201088,17.71842,2525.0,2524.8,0.00096616]
[1747784201280,15.7388,2525.0,2524.9,0.00096616]
[1747784201592,16.53066,2525.0,2524.9,0.00096616]
[1747784201784,16.53066,2525.0,2524.6,3.2078]
[1747784201785,0.79193,2524.7,2524.6,3.99974]
[1747784201985,0.79193,2524.7,2524.6,3.20876616]
[1747784202488,2.772405,2524.7,2524.6,3.20876616]
[1747784202683,1.980475,2524.7,2524.6,3.2078]
[1747784202987,0.79202,2524.4,2524.3,3.99983]
[1747784203388,0.79202,2524.4,2524.3,4.00079616]
[1747784203591,12.53082,2524.6,2524.5,0.00096616]
[1747784203790,12.53082,2524.6,2524.3,3.99983]
[1747784203791,15.88405001,2524.6,2524.4,0.00096616]
[1747784203979,0.79199,2524.5,2524.4,0.00096616]
[1747784204185,0.79202,2524.4,2524.3,3.2078]
[1747784204493,2.77273,2524.4,2524.3,3.20876616]
[1747784204791,2.77273,2524.4,2524.3,4.00081616]
[1747784204992,2.77273,2524.4,2524.3,5.39341616]
[1747784205290,1.98053,2524.4,2524.3,5.39341616]
[1747784205792,39.917,2525.1,2524.9,0.79186]
[1747784205983,13.32283,2525.0,2524.9,0.79297616]
[1747784206685,15.303065,2525.0,2524.9,0.79297616]
[1747784206886,12.531,2525.0,2524.9,0.79297616]
[1747784207084,40.70881,2525.1,2524.9,2.17057616]
[1747784207287,53.23981,2525.1,2525.0,4.00077616]
[1747784207488,55.21997001,2525.1,2525.0,5.37837616]
[1747784207685,54.42787001,2525.1,2525.0,5.37837616]
[1747784207885,53.63606001,2525.1,2525.0,5.37837616]
[1747784208084,0.00593812,2525.2,2525.1,0.7918]
[1747784208281,12.53693812,2525.2,2525.1,0.79294616]
[1747784208687,13.32870812,2525.2,2525.1,0.79294616]
[1747784209395,0.00593812,2525.2,2525.1,0.79294616]
[1747784209791,12.531,2525.5,2525.2,0.79287616]
[1747784209990,0.79171,2525.4,2525.3,1.3972]
[1747784210489,0.79171,2525.4,2525.1,2.189]
[1747784210490,0.7918,2525.2,2525.1,2.189]
[1747784210683,0.7918,2525.2,2525.1,0.7918]
[1747784210888,0.00593812,2525.4,2525.3,0.79174]
[1747784211088,0.00593812,2525.4,2525.3,4.00068616]
[1747784211294,1.98574812,2525.4,2525.3,4.00068616]
[1747784211895,0.79171,2525.4,2525.3,4.78664804]
[1747784212194,2.77163501,2525.4,2525.3,3.99490804]
[1747784212788,1.97963501,2525.4,2525.3,3.99490804]
[1747784212989,4.08254501,2525.4,2525.3,3.99490804]
[1747784213195,4.08254501,2525.4,2525.3,4.78664804]
[1747784213496,4.08254501,2525.4,2525.3,3.99490804]
[1747784213697,4.08254501,2525.4,2525.3,0.78710804]
[1747784214291,0.79178,2525.2,2525.1,0.7918]